[Event "Titled Tuesday Blitz November 01 Late 2022"]
[White "Sokolovsky, Yahli"]
[Black "Jones, Gawain C B"]
[WhiteFideId "2820242"]
[BlackFideId "409561"]
[WhiteElo "2316"]
[BlackElo "2657"]
[Result "0-1"]
[Round "07"]
[TimeControl "180+1"]
[Date "2022.11.01"]
[WhiteClock "0:00:08"]
[BlackClock "0:00:04"]

1. b3 {[%clk 0:03:00]}  e5 {[%clk 0:02:58]} 2. Bb2 {[%clk 0:03:01]}  d6 {[%clk 0:02:56]} 3. e3 {[%clk 0:03:00]}  g6 {[%clk 0:02:55]} 4. d4 {[%clk 0:02:46]}  Nd7 {[%clk 0:02:55]} 5. Nf3 {[%clk 0:02:45]}  e4 {[%clk 0:02:54]} 6. Nfd2 {[%clk 0:02:45]}  d5 {[%clk 0:02:53]} 7. c4 {[%clk 0:02:46]}  c6 {[%clk 0:02:53]} 8. Nc3 {[%clk 0:02:44]}  Ngf6 {[%clk 0:02:50]} 9. f3 {[%clk 0:02:43]}  exf3 {[%clk 0:02:38]} 10. Qxf3 {[%clk 0:02:44]}  Bg7 {[%clk 0:02:32]} 11. cxd5 {[%clk 0:02:39]}  cxd5 {[%clk 0:02:33]} 12. Nxd5 {[%clk 0:02:33]}  Nxd5 {[%clk 0:02:33]} 13. Qxd5 {[%clk 0:02:33]}  O-O {[%clk 0:02:33]} 14. O-O-O {[%clk 0:02:23]}  Qe7 {[%clk 0:02:24]} 15. Qe4 {[%clk 0:02:04]}  Qg5 {[%clk 0:02:19]} 16. Ba3 {[%clk 0:01:34]}  Nf6 {[%clk 0:02:10]} 17. Qe5 {[%clk 0:01:13]}  Bf5 {[%clk 0:02:04]} 18. Bxf8 {[%clk 0:01:13]}  Re8 {[%clk 0:01:31]} 19. Qf4 {[%clk 0:01:03]}  Bxf8 {[%clk 0:01:27]} 20. Kb2 {[%clk 0:00:54]}  Qh5 {[%clk 0:01:17]} 21. Bb5 {[%clk 0:00:48]}  Nd5 {[%clk 0:01:12]} 22. Qf3 {[%clk 0:00:39]}  Bg4 {[%clk 0:01:12]} 23. Qf2 {[%clk 0:00:30]}  Rxe3 {[%clk 0:01:02]} 24. Rhf1 {[%clk 0:00:24]}  Be6 {[%clk 0:00:48]} 25. Rc1 {[%clk 0:00:20]}  Rc3 {[%clk 0:00:14]} 26. Rxc3 {[%clk 0:00:15]}  Nxc3 {[%clk 0:00:15]} 27. Kxc3 {[%clk 0:00:08]}  Qxb5 {[%clk 0:00:14]} 28. Kb2 {[%clk 0:00:07]}  Qa5 {[%clk 0:00:13]} 29. Nb1 {[%clk 0:00:07]}  Bg7 {[%clk 0:00:11]} 30. Qe3 {[%clk 0:00:07]}  Qd5 {[%clk 0:00:10]} 31. Rd1 {[%clk 0:00:07]}  Qxg2+ {[%clk 0:00:10]} 32. Rd2 {[%clk 0:00:08]}  Qh3 {[%clk 0:00:08]} 33. Qxh3 {[%clk 0:00:07]}  Bxh3 {[%clk 0:00:09]} 34. Nc3 {[%clk 0:00:07]}  Kf8 {[%clk 0:00:09]} 35. d5 {[%clk 0:00:08]}  Ke7 {[%clk 0:00:08]} 36. Rf2 {[%clk 0:00:05]}  Bf5 {[%clk 0:00:08]} 37. Rf3 {[%clk 0:00:04]}  Kd6 {[%clk 0:00:08]} 38. b4 {[%clk 0:00:03]}  h5 {[%clk 0:00:07]} 39. Kb3 {[%clk 0:00:03]}  Bxc3 {[%clk 0:00:07]} 40. Rxc3 {[%clk 0:00:03]}  Kxd5 {[%clk 0:00:06]} 41. Rc7 {[%clk 0:00:04]}  Be6 {[%clk 0:00:07]} 42. Kc3 {[%clk 0:00:03]}  b6 {[%clk 0:00:06]} 43. Rxa7 {[%clk 0:00:03]}  g5 {[%clk 0:00:06]} 44. a4 {[%clk 0:00:02]}  g4 {[%clk 0:00:06]} 45. Ra8 {[%clk 0:00:03]}  f5 {[%clk 0:00:05]} 46. Rh8 {[%clk 0:00:03]}  f4 {[%clk 0:00:05]} 47. Rxh5+ {[%clk 0:00:03]}  Ke4 {[%clk 0:00:05]} 48. Rh6 {[%clk 0:00:03]}  Bf5 {[%clk 0:00:05]} 49. Rxb6 {[%clk 0:00:03]}  Ke3 {[%clk 0:00:03]} 50. Rb8 {[%clk 0:00:02]}  f3 {[%clk 0:00:03]} 51. Rf8 {[%clk 0:00:02]}  Bd7 {[%clk 0:00:03]} 52. a5 {[%clk 0:00:02]}  Bb5 {[%clk 0:00:02]} 53. Rf7 {[%clk 0:00:01]}  f2 {[%clk 0:00:02]} 54. Rf6 {[%clk 0:00:01]}  f1=Q {[%clk 0:00:03]} 55. Rxf1 {[%clk 0:00:02]}  Bxf1 {[%clk 0:00:03]} 56. Kb3 {[%clk 0:00:02]}  Bb5 {[%clk 0:00:03]} 57. a6 {[%clk 0:00:03]}  Bxa6 {[%clk 0:00:03]} 58. Ka4 {[%clk 0:00:03]}  Kf2 {[%clk 0:00:03]} 59. Ka5 {[%clk 0:00:04]}  Bc4 {[%clk 0:00:04]} 60. Kb6 {[%clk 0:00:05]}  Kg2 {[%clk 0:00:04]} 61. Kc5 {[%clk 0:00:06]}  Bf1 {[%clk 0:00:04]} 62. b5 {[%clk 0:00:07]}  Bxb5 {[%clk 0:00:03]} 63. Kxb5 {[%clk 0:00:08]}  Kxh2 {[%clk 0:00:04]} 0-1


[Site "https://www.chess.com"]

[Event "Titled Tuesday Blitz November 01 Late 2022"]
[White "Storey, Charles H"]
[Black "Ramirez, Alejandro"]
[WhiteFideId "406686"]
[BlackFideId "6500617"]
[WhiteElo "2473"]
[BlackElo "2743"]
[Result "0-1"]
[Round "07"]
[TimeControl "180+1"]
[Date "2022.11.02"]
[WhiteClock "0:00:08"]
[BlackClock "0:00:40"]

1. c4 {[%clk 0:02:56]}  e6 {[%clk 0:02:59]} 2. g3 {[%clk 0:02:56]}  d5 {[%clk 0:02:59]} 3. Bg2 {[%clk 0:02:57]}  Nf6 {[%clk 0:02:59]} 4. Nf3 {[%clk 0:02:58]}  d4 {[%clk 0:02:59]} 5. O-O {[%clk 0:02:58]}  Nc6 {[%clk 0:03:00]} 6. d3 {[%clk 0:02:55]}  Bc5 {[%clk 0:03:00]} 7. b3 {[%clk 0:02:54]}  O-O {[%clk 0:02:59]} 8. Ba3 {[%clk 0:02:54]}  Qe7 {[%clk 0:02:57]} 9. Bxc5 {[%clk 0:02:53]}  Qxc5 {[%clk 0:02:58]} 10. Nbd2 {[%clk 0:02:53]}  h6 {[%clk 0:02:54]} 11. a3 {[%clk 0:02:53]}  e5 {[%clk 0:02:49]} 12. b4 {[%clk 0:02:53]}  Qe7 {[%clk 0:02:50]} 13. b5 {[%clk 0:02:51]}  Nb8 {[%clk 0:02:49]} 14. Qb3 {[%clk 0:02:48]}  Nbd7 {[%clk 0:02:47]} 15. Qb4 {[%clk 0:02:49]}  Qd6 {[%clk 0:02:29]} 16. Qxd6 {[%clk 0:02:40]}  cxd6 {[%clk 0:02:29]} 17. Nb3 {[%clk 0:02:39]}  Rb8 {[%clk 0:02:22]} 18. Nfd2 {[%clk 0:02:39]}  b6 {[%clk 0:02:20]} 19. a4 {[%clk 0:02:39]}  a5 {[%clk 0:02:09]} 20. bxa6 {[%clk 0:02:32]}  Bxa6 {[%clk 0:02:08]} 21. Rfb1 {[%clk 0:02:19]}  Rfc8 {[%clk 0:02:08]} 22. Rb2 {[%clk 0:02:10]}  Kf8 {[%clk 0:02:04]} 23. Rab1 {[%clk 0:02:10]}  Ke7 {[%clk 0:02:03]} 24. Ne4 {[%clk 0:02:05]}  Ne8 {[%clk 0:01:50]} 25. Bh3 {[%clk 0:01:59]}  g6 {[%clk 0:01:42]} 26. Bxd7 {[%clk 0:01:58]}  Kxd7 {[%clk 0:01:43]} 27. Na1 {[%clk 0:01:49]}  Kc7 {[%clk 0:01:37]} 28. Nc2 {[%clk 0:01:40]}  f5 {[%clk 0:01:38]} 29. Nb4 {[%clk 0:01:34]}  Bb7 {[%clk 0:01:37]} 30. Nd2 {[%clk 0:01:28]}  Nf6 {[%clk 0:01:38]} 31. Nb3 {[%clk 0:01:15]}  Ra8 {[%clk 0:01:29]} 32. Ra1 {[%clk 0:01:06]}  Ra7 {[%clk 0:01:24]} 33. a5 {[%clk 0:00:59]}  bxa5 {[%clk 0:01:24]} 34. Nxa5 {[%clk 0:00:58]}  Rca8 {[%clk 0:01:21]} 35. Rba2 {[%clk 0:00:56]}  Bc8 {[%clk 0:01:16]} 36. Nd5+ {[%clk 0:00:49]}  Nxd5 {[%clk 0:01:10]} 37. cxd5 {[%clk 0:00:50]}  Kd7 {[%clk 0:01:11]} 38. Ra3 {[%clk 0:00:38]}  Bb7 {[%clk 0:01:10]} 39. Nc4 {[%clk 0:00:36]}  Rxa3 {[%clk 0:01:10]} 40. Rxa3 {[%clk 0:00:35]}  Rxa3 {[%clk 0:01:10]} 41. Nxa3 {[%clk 0:00:35]}  Bxd5 {[%clk 0:01:11]} 42. Nc2 {[%clk 0:00:30]}  g5 {[%clk 0:01:10]} 43. e3 {[%clk 0:00:29]}  Bb3 {[%clk 0:01:08]} 44. Ne1 {[%clk 0:00:24]}  dxe3 {[%clk 0:01:05]} 45. fxe3 {[%clk 0:00:24]}  Kc6 {[%clk 0:01:02]} 46. h4 {[%clk 0:00:23]}  g4 {[%clk 0:00:56]} 47. Kf2 {[%clk 0:00:21]}  Kc5 {[%clk 0:00:55]} 48. Ke2 {[%clk 0:00:21]}  Bd5 {[%clk 0:00:51]} 49. Nc2 {[%clk 0:00:17]}  Bf3+ {[%clk 0:00:49]} 50. Kd2 {[%clk 0:00:16]}  Bc6 {[%clk 0:00:50]} 51. Kc3 {[%clk 0:00:15]}  f4 {[%clk 0:00:43]} 52. d4+ {[%clk 0:00:12]}  Kb6 {[%clk 0:00:43]} 53. exf4 {[%clk 0:00:11]}  exf4 {[%clk 0:00:44]} 54. gxf4 {[%clk 0:00:11]}  g3 {[%clk 0:00:44]} 55. Ne3 {[%clk 0:00:07]}  g2 {[%clk 0:00:45]} 56. Nxg2 {[%clk 0:00:07]}  Bxg2 {[%clk 0:00:46]} 57. Kc4 {[%clk 0:00:07]}  Kc6 {[%clk 0:00:46]} 58. f5 {[%clk 0:00:07]}  d5+ {[%clk 0:00:43]} 59. Kd3 {[%clk 0:00:07]}  Be4+ {[%clk 0:00:41]} 60. Ke3 {[%clk 0:00:07]}  Bxf5 {[%clk 0:00:41]} 61. Kf4 {[%clk 0:00:08]}  Be4 {[%clk 0:00:39]} 62. Ke5 {[%clk 0:00:08]}  Bf3 {[%clk 0:00:39]} 63. Kf6 {[%clk 0:00:08]}  h5 {[%clk 0:00:40]} 0-1


[Site "https://www.chess.com"]

[Event "Titled Tuesday Blitz November 01 Late 2022"]
[White "Suleymanli, Aydin"]
[Black "Sarana, Alexey"]
[WhiteFideId "13413937"]
[BlackFideId "24133795"]
[WhiteElo "2481"]
[BlackElo "2689"]
[Result "1-0"]
[Round "07"]
[TimeControl "180+1"]
[Date "2022.11.01"]
[WhiteClock "0:00:07"]
[BlackClock "0:00:02"]

1. c4 {[%clk 0:03:00]}  e6 {[%clk 0:02:59]} 2. Nc3 {[%clk 0:02:57]}  d5 {[%clk 0:03:00]} 3. cxd5 {[%clk 0:02:58]}  exd5 {[%clk 0:03:00]} 4. d4 {[%clk 0:02:58]}  Nf6 {[%clk 0:02:59]} 5. Nf3 {[%clk 0:02:58]}  Nbd7 {[%clk 0:02:55]} 6. Bg5 {[%clk 0:02:57]}  Bb4 {[%clk 0:02:54]} 7. Qc2 {[%clk 0:02:54]}  h6 {[%clk 0:02:44]} 8. Bh4 {[%clk 0:02:47]}  c5 {[%clk 0:02:43]} 9. e3 {[%clk 0:02:40]}  Qa5 {[%clk 0:02:44]} 10. Bd3 {[%clk 0:02:32]}  c4 {[%clk 0:02:42]} 11. Bf5 {[%clk 0:02:31]}  O-O {[%clk 0:02:28]} 12. O-O {[%clk 0:02:29]}  Re8 {[%clk 0:02:28]} 13. a3 {[%clk 0:02:06]}  Bxc3 {[%clk 0:02:24]} 14. bxc3 {[%clk 0:02:04]}  Ne4 {[%clk 0:02:22]} 15. Bxe4 {[%clk 0:02:03]}  Rxe4 {[%clk 0:02:23]} 16. a4 {[%clk 0:02:00]}  Nf8 {[%clk 0:02:01]} 17. Rfb1 {[%clk 0:01:50]}  Qc7 {[%clk 0:01:38]} 18. Bg3 {[%clk 0:01:39]}  Qe7 {[%clk 0:01:37]} 19. Rb5 {[%clk 0:01:37]}  Qd8 {[%clk 0:01:16]} 20. Ne5 {[%clk 0:01:25]}  a6 {[%clk 0:01:15]} 21. Rb4 {[%clk 0:01:19]}  Bf5 {[%clk 0:01:03]} 22. Qb2 {[%clk 0:01:03]}  f6 {[%clk 0:01:02]} 23. Nf3 {[%clk 0:00:49]}  Bc8 {[%clk 0:01:01]} 24. a5 {[%clk 0:00:46]}  h5 {[%clk 0:00:57]} 25. Rb6 {[%clk 0:00:38]}  Re6 {[%clk 0:00:48]} 26. Rb1 {[%clk 0:00:33]}  Rc6 {[%clk 0:00:26]} 27. Rxc6 {[%clk 0:00:26]}  bxc6 {[%clk 0:00:27]} 28. Qb6 {[%clk 0:00:26]}  Qe8 {[%clk 0:00:25]} 29. Qc7 {[%clk 0:00:13]}  Ne6 {[%clk 0:00:25]} 30. Qd6 {[%clk 0:00:11]}  Qd7 {[%clk 0:00:17]} 31. Qxd7 {[%clk 0:00:11]}  Bxd7 {[%clk 0:00:18]} 32. Rb7 {[%clk 0:00:11]}  Be8 {[%clk 0:00:15]} 33. Bd6 {[%clk 0:00:11]}  g5 {[%clk 0:00:13]} 34. h4 {[%clk 0:00:10]}  Bg6 {[%clk 0:00:11]} 35. hxg5 {[%clk 0:00:09]}  fxg5 {[%clk 0:00:09]} 36. Ne5 {[%clk 0:00:09]}  Be8 {[%clk 0:00:09]} 37. f3 {[%clk 0:00:09]}  h4 {[%clk 0:00:09]} 38. Kf2 {[%clk 0:00:09]}  Ng7 {[%clk 0:00:09]} 39. e4 {[%clk 0:00:09]}  Ne6 {[%clk 0:00:08]} 40. Ng4 {[%clk 0:00:08]}  Bg6 {[%clk 0:00:03]} 41. Nh6+ {[%clk 0:00:07]}  Kh8 {[%clk 0:00:02]} 42. Be5+ {[%clk 0:00:07]}  Ng7 {[%clk 0:00:02]} 43. Rxg7 {[%clk 0:00:07]} 1-0


[Site "https://www.chess.com"]

[Event "Titled Tuesday Blitz November 01 Late 2022"]
[White "Tan, Ralph"]
[Black "Aldokhin, Ivan"]
[WhiteFideId "30966590"]
[BlackFideId "24115720"]
[WhiteElo "2059"]
[BlackElo "2313"]
[Result "0-1"]
[Round "07"]
[TimeControl "180+1"]
[Date "2022.11.02"]
[WhiteClock "0:00:49"]
[BlackClock "0:00:06"]

1. Nf3 {[%clk 0:03:00]}  Nf6 {[%clk 0:02:53]} 2. g3 {[%clk 0:03:00]}  g6 {[%clk 0:02:54]} 3. Bg2 {[%clk 0:03:01]}  Bg7 {[%clk 0:02:54]} 4. O-O {[%clk 0:03:01]}  d6 {[%clk 0:02:55]} 5. d4 {[%clk 0:03:02]}  O-O {[%clk 0:02:56]} 6. c4 {[%clk 0:03:03]}  Nbd7 {[%clk 0:02:56]} 7. Nc3 {[%clk 0:03:03]}  e5 {[%clk 0:02:56]} 8. e3 {[%clk 0:03:03]}  exd4 {[%clk 0:02:51]} 9. exd4 {[%clk 0:03:04]}  Re8 {[%clk 0:02:52]} 10. b3 {[%clk 0:03:04]}  Nf8 {[%clk 0:02:30]} 11. Bb2 {[%clk 0:03:02]}  Bf5 {[%clk 0:02:31]} 12. Rc1 {[%clk 0:03:02]}  Ne4 {[%clk 0:02:23]} 13. Nxe4 {[%clk 0:02:56]}  Bxe4 {[%clk 0:02:23]} 14. Re1 {[%clk 0:02:52]}  Qf6 {[%clk 0:02:13]} 15. Bc3 {[%clk 0:02:41]}  Bxf3 {[%clk 0:02:03]} 16. Qxf3 {[%clk 0:02:40]}  Qxf3 {[%clk 0:01:59]} 17. Bxf3 {[%clk 0:02:40]}  c6 {[%clk 0:02:00]} 18. Red1 {[%clk 0:02:25]}  Re7 {[%clk 0:01:47]} 19. b4 {[%clk 0:02:22]}  a6 {[%clk 0:01:36]} 20. a4 {[%clk 0:02:21]}  Ne6 {[%clk 0:01:28]} 21. h4 {[%clk 0:02:18]}  Nc7 {[%clk 0:01:23]} 22. Kg2 {[%clk 0:02:12]}  f5 {[%clk 0:01:11]} 23. Bd2 {[%clk 0:02:02]}  Kf7 {[%clk 0:00:47]} 24. Bf4 {[%clk 0:02:01]}  Rd8 {[%clk 0:00:42]} 25. a5 {[%clk 0:01:54]}  Ne6 {[%clk 0:00:42]} 26. Be3 {[%clk 0:01:52]}  f4 {[%clk 0:00:38]} 27. gxf4 {[%clk 0:01:51]}  Bh6 {[%clk 0:00:38]} 28. f5 {[%clk 0:01:50]}  Nf4+ {[%clk 0:00:30]} 29. Bxf4 {[%clk 0:01:50]}  Bxf4 {[%clk 0:00:30]} 30. fxg6+ {[%clk 0:01:51]}  hxg6 {[%clk 0:00:25]} 31. Rc2 {[%clk 0:01:43]}  Rh8 {[%clk 0:00:26]} 32. Rh1 {[%clk 0:01:42]}  Kf6 {[%clk 0:00:25]} 33. d5 {[%clk 0:01:30]}  c5 {[%clk 0:00:23]} 34. bxc5 {[%clk 0:01:28]}  dxc5 {[%clk 0:00:23]} 35. Rb2 {[%clk 0:01:28]}  Reh7 {[%clk 0:00:20]} 36. Rb6+ {[%clk 0:01:26]}  Kf5 {[%clk 0:00:18]} 37. Re1 {[%clk 0:01:25]}  Rxh4 {[%clk 0:00:15]} 38. Be4+ {[%clk 0:01:25]}  Ke5 {[%clk 0:00:13]} 39. Bxg6+ {[%clk 0:01:22]}  Kd4 {[%clk 0:00:13]} 40. Re4+ {[%clk 0:01:22]}  Kc3 {[%clk 0:00:12]} 41. Rxb7 {[%clk 0:01:18]}  Rg8 {[%clk 0:00:07]} 42. Rb6 {[%clk 0:01:17]}  Bc7 {[%clk 0:00:05]} 43. Rc6 {[%clk 0:01:14]}  Rxe4 {[%clk 0:00:05]} 44. Kf3 {[%clk 0:01:09]}  Re7 {[%clk 0:00:04]} 45. d6 {[%clk 0:01:02]}  Bxd6 {[%clk 0:00:03]} 46. Rxd6 {[%clk 0:01:02]}  Rf8+ {[%clk 0:00:03]} 47. Kg3 {[%clk 0:00:58]}  Re5 {[%clk 0:00:03]} 48. f4 {[%clk 0:00:57]}  Re1 {[%clk 0:00:03]} 49. f5 {[%clk 0:00:57]}  Rg1+ {[%clk 0:00:02]} 50. Kf4 {[%clk 0:00:57]}  Kxc4 {[%clk 0:00:03]} 51. Rxa6 {[%clk 0:00:56]}  Kb5 {[%clk 0:00:03]} 52. Ra7 {[%clk 0:00:54]}  Rxg6 {[%clk 0:00:03]} 53. Ke5 {[%clk 0:00:52]}  Rgf6 {[%clk 0:00:03]} 54. Rb7+ {[%clk 0:00:51]}  Kxa5 {[%clk 0:00:04]} 55. Rb1 {[%clk 0:00:51]}  Rxf5+ {[%clk 0:00:04]} 56. Kd6 {[%clk 0:00:51]}  c4 {[%clk 0:00:04]} 57. Ra1+ {[%clk 0:00:50]}  Kb4 {[%clk 0:00:05]} 58. Rb1+ {[%clk 0:00:50]}  Kc3 {[%clk 0:00:05]} 59. Rc1+ {[%clk 0:00:51]}  Kd3 {[%clk 0:00:05]} 60. Kc6 {[%clk 0:00:50]}  c3 {[%clk 0:00:05]} 61. Kb6 {[%clk 0:00:50]}  c2 {[%clk 0:00:05]} 62. Kc6 {[%clk 0:00:49]}  R8f6+ {[%clk 0:00:05]} 63. Kb7 {[%clk 0:00:49]}  Rg5 {[%clk 0:00:06]} 0-1


[Site "https://www.chess.com"]

[Event "Titled Tuesday Blitz November 01 Late 2022"]
[White "Tayar, Jonathan"]
[Black "Piesik, Piotr"]
[WhiteFideId "2606534"]
[BlackFideId "1136194"]
[WhiteElo "2597"]
[BlackElo "2753"]
[Result "0-1"]
[Round "07"]
[TimeControl "180+1"]
[Date "2022.11.02"]
[WhiteClock "0:00:38"]
[BlackClock "0:01:14"]

1. e4 {[%clk 0:03:00]}  g6 {[%clk 0:02:59]} 2. d4 {[%clk 0:02:59]}  Bg7 {[%clk 0:03:00]} 3. Nc3 {[%clk 0:02:59]}  c6 {[%clk 0:03:00]} 4. Bc4 {[%clk 0:02:59]}  b5 {[%clk 0:03:00]} 5. Bb3 {[%clk 0:02:57]}  b4 {[%clk 0:03:00]} 6. Qf3 {[%clk 0:02:50]}  Nf6 {[%clk 0:02:59]} 7. Nce2 {[%clk 0:02:48]}  d5 {[%clk 0:02:58]} 8. e5 {[%clk 0:02:48]}  Ne4 {[%clk 0:02:52]} 9. Ng3 {[%clk 0:02:40]}  Nxg3 {[%clk 0:02:48]} 10. hxg3 {[%clk 0:02:41]}  a5 {[%clk 0:02:45]} 11. a3 {[%clk 0:02:40]}  Ba6 {[%clk 0:02:44]} 12. axb4 {[%clk 0:02:10]}  axb4 {[%clk 0:02:45]} 13. Ra4 {[%clk 0:02:09]}  Qb6 {[%clk 0:02:44]} 14. Be3 {[%clk 0:02:03]}  e6 {[%clk 0:02:39]} 15. Nh3 {[%clk 0:01:56]}  h6 {[%clk 0:02:38]} 16. Nf4 {[%clk 0:01:54]}  Nd7 {[%clk 0:02:33]} 17. Qg4 {[%clk 0:01:53]}  O-O-O {[%clk 0:02:18]} 18. Nxe6 {[%clk 0:01:32]}  fxe6 {[%clk 0:02:17]} 19. Qxe6 {[%clk 0:01:33]}  Rhe8 {[%clk 0:01:30]} 20. Qxg6 {[%clk 0:01:23]}  Bxe5 {[%clk 0:01:18]} 21. dxe5 {[%clk 0:01:19]}  Rxe5 {[%clk 0:01:19]} 22. Rh4 {[%clk 0:00:38]}  Rxe3+ {[%clk 0:01:14]} 0-1


[Site "https://www.chess.com"]

[Event "Titled Tuesday Blitz November 01 Late 2022"]
[White "Ter-Sahakyan, Samvel"]
[Black "Mekhitarian, Krikor Sevag"]
[WhiteFideId "13302531"]
[BlackFideId "2107660"]
[WhiteElo "2604"]
[BlackElo "2614"]
[Result "1-0"]
[Round "07"]
[TimeControl "180+1"]
[Date "2022.11.01"]
[WhiteClock "0:00:50"]
[BlackClock "0:00:01"]

1. d4 {[%clk 0:03:00]}  Nf6 {[%clk 0:02:53]} 2. c4 {[%clk 0:03:00]}  g6 {[%clk 0:02:50]} 3. Nc3 {[%clk 0:02:59]}  d5 {[%clk 0:02:50]} 4. cxd5 {[%clk 0:02:59]}  Nxd5 {[%clk 0:02:51]} 5. Bd2 {[%clk 0:03:00]}  Bg7 {[%clk 0:02:51]} 6. e4 {[%clk 0:02:59]}  Nb6 {[%clk 0:02:51]} 7. Be3 {[%clk 0:02:58]}  O-O {[%clk 0:02:51]} 8. a4 {[%clk 0:02:49]}  e5 {[%clk 0:02:24]} 9. d5 {[%clk 0:02:47]}  c6 {[%clk 0:02:24]} 10. a5 {[%clk 0:02:36]}  N6d7 {[%clk 0:02:18]} 11. Nf3 {[%clk 0:02:36]}  cxd5 {[%clk 0:02:10]} 12. Nxd5 {[%clk 0:02:35]}  Nc6 {[%clk 0:02:10]} 13. Bc4 {[%clk 0:02:12]}  h6 {[%clk 0:01:31]} 14. Qd2 {[%clk 0:02:12]}  Kh7 {[%clk 0:01:08]} 15. h4 {[%clk 0:02:09]}  Nf6 {[%clk 0:01:02]} 16. Nxf6+ {[%clk 0:02:00]}  Bxf6 {[%clk 0:00:50]} 17. Bxh6 {[%clk 0:01:55]}  Qxd2+ {[%clk 0:00:47]} 18. Bxd2 {[%clk 0:01:55]}  Bg4 {[%clk 0:00:47]} 19. Ng5+ {[%clk 0:01:42]}  Kg7 {[%clk 0:00:47]} 20. f3 {[%clk 0:01:43]}  Bd7 {[%clk 0:00:46]} 21. Bd5 {[%clk 0:01:26]}  Nd4 {[%clk 0:00:45]} 22. Kf2 {[%clk 0:01:24]}  Rac8 {[%clk 0:00:45]} 23. Rac1 {[%clk 0:01:23]}  Bc6 {[%clk 0:00:34]} 24. Bb4 {[%clk 0:01:16]}  Rfd8 {[%clk 0:00:30]} 25. Nxf7 {[%clk 0:01:13]}  Rd7 {[%clk 0:00:04]} 26. Ng5 {[%clk 0:01:06]}  Rcd8 {[%clk 0:00:02]} 27. Be6 {[%clk 0:00:54]}  Rc7 {[%clk 0:00:01]} 28. Ba2 {[%clk 0:00:52]}  Bxg5 {[%clk 0:00:01]} 29. hxg5 {[%clk 0:00:52]}  Rcc8 {[%clk 0:00:01]} 30. Rc5 {[%clk 0:00:51]}  Re8 {[%clk 0:00:01]} 31. Bc3 {[%clk 0:00:50]}  Rg8 {[%clk 0:00:01]} 1-0


[Site "https://www.chess.com"]

[Event "Titled Tuesday Blitz November 01 Late 2022"]
[White "Winkels, Marcel"]
[Black "Castella Garcia, Fausto"]
[WhiteFideId "1003887"]
[BlackFideId "3501922"]
[WhiteElo "1900"]
[BlackElo "2246"]
[Result "0-1"]
[Round "07"]
[TimeControl "180+1"]
[Date "2022.11.02"]
[WhiteClock "0:00:02"]
[BlackClock "0:00:52"]

1. d4 {[%clk 0:03:00]}  Nf6 {[%clk 0:02:57]} 2. Bg5 {[%clk 0:02:59]}  Ne4 {[%clk 0:02:57]} 3. Bf4 {[%clk 0:02:57]}  d5 {[%clk 0:02:56]} 4. Nf3 {[%clk 0:02:57]}  c5 {[%clk 0:02:54]} 5. Nbd2 {[%clk 0:02:55]}  Nc6 {[%clk 0:02:53]} 6. e3 {[%clk 0:02:55]}  e6 {[%clk 0:02:51]} 7. Bd3 {[%clk 0:02:54]}  Nf6 {[%clk 0:02:48]} 8. c3 {[%clk 0:02:53]}  Bd6 {[%clk 0:02:46]} 9. O-O {[%clk 0:02:52]}  O-O {[%clk 0:02:43]} 10. Ne5 {[%clk 0:02:49]}  Qc7 {[%clk 0:02:40]} 11. Ndf3 {[%clk 0:02:40]}  Ne7 {[%clk 0:02:39]} 12. Bg3 {[%clk 0:02:36]}  Nf5 {[%clk 0:02:27]} 13. Bxf5 {[%clk 0:02:24]}  exf5 {[%clk 0:02:27]} 14. a3 {[%clk 0:02:06]}  Ne4 {[%clk 0:02:04]} 15. Rc1 {[%clk 0:02:02]}  Nxg3 {[%clk 0:02:03]} 16. hxg3 {[%clk 0:01:55]}  c4 {[%clk 0:02:01]} 17. Nd2 {[%clk 0:01:40]}  f6 {[%clk 0:01:58]} 18. Nef3 {[%clk 0:01:39]}  b5 {[%clk 0:01:42]} 19. Qc2 {[%clk 0:01:30]}  a5 {[%clk 0:01:40]} 20. Nh4 {[%clk 0:01:09]}  g6 {[%clk 0:01:38]} 21. Rfe1 {[%clk 0:01:04]}  Bd7 {[%clk 0:01:34]} 22. Nf1 {[%clk 0:01:00]}  b4 {[%clk 0:01:31]} 23. axb4 {[%clk 0:00:59]}  axb4 {[%clk 0:01:32]} 24. f3 {[%clk 0:00:57]}  Bxg3 {[%clk 0:01:25]} 25. Nxg3 {[%clk 0:00:51]}  Qxg3 {[%clk 0:01:24]} 26. Qf2 {[%clk 0:00:52]}  Qxf2+ {[%clk 0:01:24]} 27. Kxf2 {[%clk 0:00:51]}  Ra2 {[%clk 0:01:22]} 28. g4 {[%clk 0:00:35]}  Rxb2+ {[%clk 0:01:20]} 29. Re2 {[%clk 0:00:34]}  Rxe2+ {[%clk 0:01:20]} 30. Kxe2 {[%clk 0:00:35]}  fxg4 {[%clk 0:01:21]} 31. cxb4 {[%clk 0:00:32]}  gxf3+ {[%clk 0:01:20]} 32. Nxf3 {[%clk 0:00:30]}  Rb8 {[%clk 0:01:19]} 33. Rb1 {[%clk 0:00:30]}  g5 {[%clk 0:01:20]} 34. Nd2 {[%clk 0:00:26]}  f5 {[%clk 0:01:17]} 35. Nf1 {[%clk 0:00:22]}  h5 {[%clk 0:01:14]} 36. Ng3 {[%clk 0:00:21]}  h4 {[%clk 0:01:14]} 37. Nh5 {[%clk 0:00:20]}  Kf7 {[%clk 0:01:13]} 38. Ra1 {[%clk 0:00:14]}  Rb7 {[%clk 0:01:12]} 39. Ra6 {[%clk 0:00:12]}  Be6 {[%clk 0:01:12]} 40. Ng7 {[%clk 0:00:09]}  Kxg7 {[%clk 0:01:09]} 41. Rxe6 {[%clk 0:00:10]}  Rxb4 {[%clk 0:01:06]} 42. Re5 {[%clk 0:00:10]}  Kg6 {[%clk 0:01:06]} 43. Rxd5 {[%clk 0:00:09]}  Rb2+ {[%clk 0:01:06]} 44. Kf3 {[%clk 0:00:09]}  c3 {[%clk 0:01:03]} 45. Rc5 {[%clk 0:00:08]}  c2 {[%clk 0:01:04]} 46. d5 {[%clk 0:00:08]}  h3 {[%clk 0:00:56]} 47. d6 {[%clk 0:00:05]}  h2 {[%clk 0:00:54]} 48. Kg2 {[%clk 0:00:02]}  c1=Q+ {[%clk 0:00:52]} 0-1


[Site "https://www.chess.com"]

[Event "Titled Tuesday Blitz November 01 Late 2022"]
[White "Yanchenko, Roman"]
[Black "Rosen, Eric"]
[WhiteFideId "4137329"]
[BlackFideId "2032562"]
[WhiteElo "2781"]
[BlackElo "2611"]
[Result "1-0"]
[Round "07"]
[TimeControl "180+1"]
[Date "2022.11.02"]
[WhiteClock "0:02:52"]
[BlackClock "0:01:27"]

1. d4 {[%clk 0:03:00]}  d5 {[%clk 0:02:59]} 2. c4 {[%clk 0:03:01]}  e6 {[%clk 0:02:55]} 3. Nc3 {[%clk 0:03:01]}  Nf6 {[%clk 0:02:54]} 4. Bg5 {[%clk 0:03:01]}  Nbd7 {[%clk 0:02:49]} 5. e3 {[%clk 0:03:01]}  c6 {[%clk 0:02:49]} 6. Nf3 {[%clk 0:03:01]}  Qa5 {[%clk 0:02:49]} 7. Bxf6 {[%clk 0:03:00]}  Nxf6 {[%clk 0:02:49]} 8. a3 {[%clk 0:03:00]}  c5 {[%clk 0:02:27]} 9. dxc5 {[%clk 0:02:58]}  Qxc5 {[%clk 0:02:24]} 10. cxd5 {[%clk 0:02:58]}  exd5 {[%clk 0:02:05]} 11. Bb5+ {[%clk 0:02:57]}  Bd7 {[%clk 0:01:59]} 12. Bxd7+ {[%clk 0:02:56]}  Kxd7 {[%clk 0:01:43]} 13. Rc1 {[%clk 0:02:55]}  Qc4 {[%clk 0:01:27]} 14. Ne5+ {[%clk 0:02:52]} 1-0


[Site "https://www.chess.com"]